fUST/lending_fUST_20251231
["ID","MTS","AMOUNT","RATE_DAILY","PERIOD"]
[400137030,1767145850407,-479.53352828,0.00022655,2]
[400137031,1767145850416,-500.0,0.00022739,2]
[400137032,1767145850426,-952.37,0.00022739,2]
[400137033,1767145850436,-3532.14,0.00022739,2]
[400137034,1767145850445,-500.0,0.00022739,2]
[400137035,1767145850454,-346.29272725,0.00022739,2]
[400137036,1767145850464,-500.0,0.00022739,2]
[400137037,1767145850474,-1000.0,0.00022871,10]
[400137038,1767145850484,-791.0,0.00022871,10]
[400137039,1767145850492,-165.41,0.000229,7]
[400137040,1767145850502,-11619.88,0.000229,2]
[400137041,1767145850511,-160.68,0.000229,7]
[400137042,1767145850520,-2462.4790473,0.0002298,2]
[400137043,1767145850529,-500.0,0.00023013,2]
[400137044,1767145850539,-952.37,0.00023013,2]
[400137045,1767145850549,-3532.14,0.00023013,2]
[400137046,1767145850559,-500.0,0.00023013,2]
[400137047,1767145850569,-500.0,0.00023013,2]
[400137048,1767145850578,-450.0,0.00023014,2]
[400137049,1767145850588,-375.44797495,0.0002308,13]
[400137050,1767145850598,-8793.92042382,0.00023104,2]
[400137051,1767145850608,-4737.66,0.00023221,2]
[400137052,1767145850617,-11364.96697799,0.00023243,2]
[400137053,1767145850627,-2462.4790473,0.00023262,2]
[400137054,1767145850637,-510.62079878,0.00023287,2]
[400137055,1767145850646,-952.37,0.00023287,2]
[400137056,1767145850655,-3532.14,0.00023287,2]
[400137057,1767145850665,-500.0,0.00023287,2]
[400137058,1767145850674,-562.74320886,0.00023287,2]
[400137059,1767145850684,-23638.71,0.000233,3]
[400137060,1767145850694,-1041.66666667,0.000233,3]
[400137061,1767145850703,-1041.66666667,0.000233,3]
[400137062,1767145850712,-2462.4790473,0.00023335,2]
[400137063,1767145850722,-160.0,0.00023457,3]
[400137064,1767145850732,-500.0,0.00023494,2]
[400137065,1767145850741,-1173.6,0.000235,14]
[400137066,1767145850751,-952.37,0.00023561,2]
[400137067,1767145850760,-3532.14,0.00023561,2]
[400137068,1767145850770,-500.0,0.00023561,2]
[400137069,1767145850781,-425.96070951,0.00023562,2]
[400137070,1767145850791,-170.97,0.000236,7]
[400137071,1767145850800,-223.2,0.00023679,2]
[400137072,1767145850811,-160.0,0.0002377,4]
[400137073,1767145850821,-2462.4790473,0.00023771,2]
[400137074,1767145850830,-200.90977335,0.00023835,2]
[400137075,1767145850839,-952.37,0.00023835,2]
[400137076,1767145850849,-3532.14,0.00023835,2]
[400137077,1767145850858,-472.89680193,0.00023835,2]
[400137078,1767145850867,-225.12,0.000239,2]
[400137079,1767145850877,-470.29470198,0.000239,2]
[400137080,1767145850886,-470.2947019,0.000239,2]
[400137081,1767145850895,-470.2947019,0.000239,2]
[400137082,1767145850904,-470.2947019,0.000239,2]
[400137083,1767145850916,-470.2947019,0.000239,2]
[400137084,1767145850926,-470.2947019,0.000239,2]
[400137085,1767145850935,-470.2947019,0.000239,2]
[400137086,1767145850945,-470.2947019,0.000239,2]
[400137087,1767145850954,-470.2947019,0.000239,2]
[400137088,1767145850964,-470.2947019,0.000239,2]
[400137089,1767145850974,-1168.06182939,0.00023987,2]
[400137090,1767145850983,-2462.4790473,0.00024004,2]
[400137091,1767145850993,-2955.0,0.00024031,2]
[400137092,1767145851002,-160.0,0.00024083,5]
[400137093,1767145851011,-952.37,0.00024109,2]
[400137094,1767145851020,-3532.14,0.00024109,2]
[400137095,1767145851030,-375.44797495,0.00024243,14]
[400137096,1767145851041,-332.0,0.00024251,2]
[400137097,1767145851051,-2462.4790473,0.00024357,2]
[400137098,1767145851061,-151.0,0.00024362,2]
[400137099,1767145851070,-151.0,0.00024362,2]
[400137100,1767145851080,-250.0,0.00024362,2]
[400137101,1767145851090,-500.0,0.00024362,2]
[400137102,1767145851100,-256.05842471,0.00024362,2]
[400137103,1767145851109,-500.0,0.00024362,2]
[400137104,1767145851119,-500.0,0.00024362,2]
[400137105,1767145851128,-500.0,0.00024362,2]
[400137106,1767145851137,-500.0,0.00024362,2]
[400137107,1767145851147,-151.50260762,0.00024362,2]
[400137108,1767145851156,-500.0,0.00024362,2]
[400137109,1767145851166,-500.0,0.00024362,2]
[400137110,1767145851269,-500.0,0.00024362,2]
[400137111,1767145851280,-500.0,0.00024362,2]
[400137112,1767145851290,-151.0,0.00024362,2]
[400137113,1767145851299,-500.0,0.00024362,2]
[400137114,1767145851309,-151.0,0.00024362,2]
[400137115,1767145851318,-500.0,0.00024362,2]
[400137116,1767145851328,-151.0,0.00024362,2]
[400137117,1767145851338,-500.0,0.00024362,2]
[400137118,1767145851348,-151.0,0.00024362,2]
[400137119,1767145851358,-500.0,0.00024362,2]
[400137120,1767145851367,-151.0,0.00024362,2]
[400137121,1767145851376,-500.0,0.00024362,2]
[400137122,1767145851386,-151.0,0.00024362,2]
[400137123,1767145851396,-500.0,0.00024362,2]
[400137124,1767145851405,-151.0,0.00024362,2]
[400137125,1767145851414,-151.0,0.00024362,2]
[400137126,1767145851424,-151.0,0.00024362,2]
[400137127,1767145851434,-151.0,0.00024362,2]
[400137128,1767145851443,-151.0,0.00024362,2]
[400137129,1767145851454,-181.08010149,0.00024362,2]
[400137130,1767145851463,-151.0,0.00024362,2]
[400137131,1767145851474,-496.47127164,0.00024362,2]
[400137132,1767145851483,-153.96374261,0.00024362,2]
[400137133,1767145851494,-1000.0,0.00024362,2]
[400137134,1767145851503,-1000.0,0.00024362,2]
[400137135,1767145851513,-1000.0,0.00024362,2]
[400137136,1767145851523,-1000.0,0.00024362,2]
[400137137,1767145851533,-1000.0,0.00024362,2]
[400137138,1767145851543,-1000.0,0.00024362,2]
[400137139,1767145851552,-1000.0,0.00024362,2]
[400137140,1767145851561,-2398.4119403,0.00024362,2]
[400137141,1767145851570,-1000.0,0.00024362,2]
[400137142,1767145851579,-1000.0,0.00024362,2]
[400137143,1767145851588,-1000.0,0.00024362,2]
[400137144,1767145851597,-644.46489559,0.00024362,2]
[400137145,1767145851606,-952.37,0.00024383,2]
[400137146,1767145851616,-3532.14,0.00024383,2]
[400137147,1767145851625,-160.0,0.00024396,6]
[400137148,1767145851635,-426.0,0.0002451,2]
[400137149,1767145851644,-165.41,0.000246,7]
[400137150,1767145851654,-11619.88,0.000246,2]
[400137151,1767145851665,-2462.4790477,0.00024609,2]
[400137152,1767145851674,-524.96302043,0.00024655,2]
[400137153,1767145851683,-952.37,0.00024657,2]
[400137154,1767145851693,-3532.14,0.00024657,2]
[400137155,1767145851704,-151.50509252,0.00024658,2]
[400137156,1767145851714,-380.0,0.00024658,2]
[400137157,1767145851724,-23638.71,0.000247,3]
[400137158,1767145851733,-151.0,0.000247,7]
[400137159,1767145851746,-219.435139,0.000247,7]
[400137160,1767145851755,-151.0,0.000247,7]
[400137161,1767145851769,-219.435139,0.000247,7]
[400137162,1767145851778,-219.435139,0.000247,7]
[400137163,1767145851788,-219.435139,0.000247,7]
[400137164,1767145851798,-488.094127,0.000247,7]
[400137165,1767145851808,-488.094127,0.000247,7]
[400137166,1767145851819,-488.094127,0.000247,7]
[400137167,1767145851828,-488.094127,0.000247,7]
[400137168,1767145851838,-160.0,0.00024709,7]
[400137169,1767145851847,-500.0,0.00024731,2]
[400137170,1767145851857,-500.0,0.000248,3]
[400137171,1767145851867,-499.794244,0.000248,7]
[400137172,1767145851876,-499.794244,0.000248,7]
[400137173,1767145851887,-499.794244,0.000248,7]
[400137174,1767145851897,-499.794244,0.000248,7]
[400137175,1767145851908,-5888.0,0.0002482,2]
[400137176,1767145851917,-195.5725229,0.00024879,2]
[400137177,1767145851927,-3615.8018367,0.00024879,2]
[400137178,1767145851938,-10609.4761615,0.00024879,2]
[400137179,1767145851948,-1047.1299578,0.00024879,2]
[400137180,1767145851958,-84616.0827057,0.00024879,2]
[400137181,1767145851967,-170.97,0.000249,7]
[400137182,1767145851976,-346.0,0.000249,3]
[400137183,1767145851985,-346.0,0.000249,3]
[400137184,1767145851994,-151.0,0.000249,3]
[400137185,1767145852003,-346.0,0.000249,3]
[400137186,1767145852012,-346.0,0.000249,3]
[400137187,1767145852021,-346.0,0.000249,3]
[400137188,1767145852031,-346.0,0.000249,3]
[400137189,1767145852041,-346.0,0.000249,3]
[400137190,1767145852050,-346.0,0.000249,3]
[400137191,1767145852060,-346.0,0.000249,3]
[400137192,1767145852069,-346.0,0.000249,3]
[400137193,1767145852079,-346.0,0.000249,3]
[400137194,1767145852088,-346.0,0.000249,3]
[400137195,1767145852098,-346.0,0.000249,3]
[400137196,1767145852107,-346.0,0.000249,3]
[400137197,1767145852118,-346.0,0.000249,3]
[400137198,1767145852127,-346.0,0.000249,3]
[400137199,1767145852136,-346.0,0.000249,3]
[400137200,1767145852146,-346.0,0.000249,3]
[400137201,1767145852155,-346.0,0.000249,3]
[400137202,1767145852165,-346.0,0.000249,3]
[400137203,1767145852175,-346.0,0.000249,3]
[400137204,1767145852184,-346.0,0.000249,3]
[400137205,1767145852193,-346.0,0.000249,3]
[400137206,1767145852202,-346.0,0.000249,3]
[400137207,1767145852212,-346.0,0.000249,3]
[400137208,1767145852221,-346.0,0.000249,3]
[400137209,1767145852231,-346.0,0.000249,3]
[400137210,1767145852240,-346.0,0.000249,3]
[400137211,1767145852250,-346.0,0.000249,3]
[400137212,1767145852260,-346.0,0.000249,3]
[400137213,1767145852269,-346.0,0.000249,3]
[400137214,1767145852279,-346.0,0.000249,3]
[400137215,1767145852288,-346.0,0.000249,3]
[400137216,1767145852297,-346.0,0.000249,3]
[400137217,1767145852307,-346.0,0.000249,3]
[400137218,1767145852316,-346.0,0.000249,3]
[400137219,1767145852325,-346.0,0.000249,3]
[400137220,1767145852335,-499.794244,0.000249,7]
[400137221,1767145852345,-499.794244,0.000249,7]
[400137222,1767145852355,-499.794244,0.000249,7]
[400137223,1767145852364,-499.794244,0.000249,7]
[400137224,1767145852374,-151.0,0.000249,7]
[400137225,1767145852383,-219.435139,0.000249,7]
[400137226,1767145852392,-235.000002,0.000249,7]
[400137227,1767145852402,-219.435139,0.000249,7]
[400137228,1767145852412,-219.435139,0.000249,7]
[400137229,1767145852423,-219.435139,0.000249,7]
[400137230,1767145852433,-201655.46822291,0.000249,2]
[400137231,1767145852571,-3347.19808484,0.000249,2]
[400137232,1767145852692,432.55,0.00012329,2]
[400137233,1767145852953,-3.53625439,0.00013698,2]
[400137234,1767145852965,-2026.02374561,0.00013698,2]
[400137235,1767145852975,-413.66354041,0.00013698,2]
[400137236,1767145856251,-1615.89645959,0.00013698,2]
[400137237,1767145856261,-2029.56,0.00013698,2]
[400137238,1767145856271,-765.71354041,0.00013698,2]
[400137239,1767145856545,5000.0,0.00012431,2]
[400137240,1767145864360,312.77,0.0001,2]
[400137241,1767145866732,312.77,0.000102,2]
[400137242,1767145869109,312.77,0.000104,2]
[400137243,1767145871567,312.77,0.000106,2]
[400137244,1767145873929,312.77,0.000108,2]
[400137245,1767145876304,312.77,0.00011,2]
[400137246,1767145888622,500.0,0.00012557,2]
[400137247,1767145888660,500.0,0.00012557,2]
[400137248,1767145888699,300.0,0.00012557,2]
[400137249,1767145888731,500.0,0.00012557,2]
[400137250,1767145888765,500.0,0.00012557,2]
[400137251,1767145888807,500.0,0.00012557,2]
[400137252,1767145944636,7200.01,0.00012458,2]
[400137253,1767145944662,10000.01,0.00012458,2]
[400137254,1767145944686,10000.01,0.00012458,2]
[400137255,1767145944710,10000.01,0.00012458,2]
[400137256,1767145944735,10000.01,0.00012458,2]
[400137257,1767145944759,10000.01,0.00012458,2]
[400137258,1767145944783,10000.01,0.00012458,2]
[400137259,1767145951457,-789.7179417,0.00012458,2]
[400137260,1767145951499,478.0,0.00028767,120]
[400137261,1767145952146,-10000.01,0.00012458,2]
[400137262,1767145952275,-10000.01,0.00012458,2]
[400137263,1767145952413,-10000.01,0.00012458,2]
[400137264,1767145952502,-10000.01,0.00012458,2]
[400137265,1767145956947,5000.0,0.00012458,2]
[400137266,1767145969507,-5000.01,0.00012458,2]
[400137267,1767145969723,-10000.01,0.00012458,2]
[400137268,1767145970100,-10000.01,0.00012458,2]
[400137269,1767145970257,-10000.01,0.00012458,2]
[400137270,1767145970380,-10000.01,0.00012458,2]
[400137271,1767145975464,-10000.01,0.00012458,2]
[400137272,1767145975557,-10000.01,0.00012458,2]
[400137273,1767145975682,-10000.01,0.00012458,2]
[400137274,1767145975885,-10000.01,0.00012458,2]
[400137275,1767145975997,-10000.01,0.00012458,2]
[400137276,1767146002159,1009.81045584,0.00012229,2]
[400137277,1767146051339,207.35873939,0.00012229,2]
[400137278,1767146070403,8782.84080477,0.00011482,2]
[400137279,1767146070425,3007.31383023,0.00011482,2]
[400137280,1767146075739,5000.0,0.00012324,2]
[400137281,1767146098529,1992.69616977,0.00012324,2]
[400137282,1767146098551,3007.30383023,0.00012324,2]
[400137283,1767146120984,5000.0,0.00012324,2]
[400137284,1767146155029,-455.3701182,0.00012329,2]
[400137285,1767146158788,-192.84193193,0.00012329,2]
[400137286,1767146161985,-237.53,0.00012329,2]
[400137287,1767146164723,-300.0,0.00012328,2]
[400137288,1767146164747,-84.54975239,0.00012329,2]
[400137289,1767146167367,-442.26531537,0.00012329,2]
[400137290,1767146173444,-360.90074197,0.00012329,2]
[400137291,1767146175310,-268.0,0.00012329,2]
[400137292,1767146176795,-628.878514,0.00012329,2]
[400137293,1767146181651,1992.70616977,0.00012324,2]
[400137294,1767146181678,3007.29383023,0.00012324,2]
[400137295,1767146181725,-227.19384157,0.00012329,2]
[400137296,1767146183044,-316.69797374,0.00012329,2]
[400137297,1767146190955,-346.55133339,0.00012329,2]
[400137298,1767146193247,-318.98366305,0.00012329,2]
[400137299,1767146198847,-338.13897447,0.00012329,2]
[400137300,1767146204873,4966.24226404,0.00012324,2]
[400137301,1767146204900,-352.42443258,0.00012329,2]
[400137302,1767146206876,-429.67340734,0.00012329,2]
[400137303,1767146215106,-340.33719739,0.00012329,2]
[400137304,1767146218294,-151.88,0.00012329,2]
[400137305,1767146415510,5000.0,0.00012318,2]
[400137306,1767146446530,3036.0,0.00028767,120]
[400137307,1767146469485,-5000.0,0.00012205,2]
[400137308,1767146469510,-300.0,0.00012327,2]
[400137309,1767146469535,-1200.0,0.00012328,2]
[400137310,1767146469571,-246.0,0.00012328,2]
[400137311,1767146469599,-300.0,0.00012328,2]
[400137312,1767146469624,-1200.0,0.00012328,2]
[400137313,1767146469651,-594.0,0.00012328,2]
[400137314,1767146469677,-258.7080363,0.00012328,2]
[400137315,1767146469702,-777.93,0.00012329,2]
[400137316,1767146469727,-1766.78,0.00012329,2]
[400137317,1767146469752,-1472.32,0.00012329,2]
[400137318,1767146469777,-1226.93,0.00012329,2]
[400137319,1767146469803,-1064.5,0.00012329,2]
[400137320,1767146469826,-887.08,0.00012329,2]
[400137321,1767146469850,-739.24,0.00012329,2]
[400137322,1767146469875,-616.03,0.00012329,2]
[400137323,1767146469899,-513.36,0.00012329,2]
[400137324,1767146469923,-427.8,0.00012329,2]
[400137325,1767146469947,-356.5,0.00012329,2]
[400137326,1767146469973,-297.08,0.00012329,2]
[400137327,1767146469996,-247.57,0.00012329,2]
[400137328,1767146470022,-206.31,0.00012329,2]
[400137329,1767146470047,-157.45895339,0.00012329,2]
[400137330,1767146470071,-496.81715166,0.00012329,2]
[400137331,1767146470096,-500.0,0.00012329,2]
[400137332,1767146470121,-503.96837946,0.00012329,2]
[400137333,1767146470149,-500.0,0.00012329,2]
[400137334,1767146470176,-272.80258895,0.00012329,2]
[400137335,1767146470201,-500.0,0.00012329,2]
[400137336,1767146470226,-500.0,0.00012329,2]
[400137337,1767146470252,-500.0,0.00012329,2]
[400137338,1767146470277,-500.0,0.00012329,2]
[400137339,1767146470307,-500.0,0.00012329,2]
[400137340,1767146470334,-370.81489024,0.00012329,2]
[400137341,1767146470813,-129.18510976,0.00012329,2]
[400137342,1767146470840,-500.0,0.00012329,2]
[400137343,1767146470867,-500.0,0.00012329,2]
[400137344,1767146470893,-500.0,0.00012329,2]
[400137345,1767146470919,-500.0,0.00012329,2]
[400137346,1767146470946,-500.0,0.00012329,2]
[400137347,1767146470973,-500.0,0.00012329,2]
[400137348,1767146470999,-500.0,0.00012329,2]
[400137349,1767146471025,-500.0,0.00012329,2]
[400137350,1767146471052,-608.43471621,0.00012329,2]
[400137351,1767146471077,-500.0,0.00012329,2]
[400137352,1767146471103,-500.0,0.00012329,2]
[400137353,1767146471130,-500.0,0.00012329,2]
[400137354,1767146471157,-500.0,0.00012329,2]
[400137355,1767146471183,-500.0,0.00012329,2]
[400137356,1767146471208,-500.0,0.00012329,2]
[400137357,1767146471233,-500.0,0.00012329,2]
[400137358,1767146471257,-500.0,0.00012329,2]
[400137359,1767146471284,-500.0,0.00012329,2]
[400137360,1767146471309,-500.0,0.00012329,2]
[400137361,1767146471494,-500.0,0.00012329,2]
[400137362,1767146471521,-500.0,0.00012329,2]
[400137363,1767146471552,-500.0,0.00012329,2]
[400137364,1767146471580,-500.0,0.00012329,2]
[400137365,1767146471606,-500.0,0.00012329,2]
[400137366,1767146471632,-500.0,0.00012329,2]
[400137367,1767146471658,-500.0,0.00012329,2]
[400137368,1767146471684,-500.0,0.00012329,2]
[400137369,1767146471710,-500.0,0.00012329,2]
[400137370,1767146471735,-500.0,0.00012329,2]
[400137371,1767146471761,-500.0,0.00012329,2]
[400137372,1767146471788,-195.70062752,0.00012329,2]
[400137373,1767146471813,-500.0,0.00012329,2]
[400137374,1767146471839,-500.0,0.00012329,2]
[400137375,1767146471867,-500.0,0.00012329,2]
[400137376,1767146471893,-500.0,0.00012329,2]
[400137377,1767146471921,-500.0,0.00012329,2]
[400137378,1767146471947,-500.0,0.00012329,2]
[400137379,1767146471975,-500.0,0.00012329,2]
[400137380,1767146472002,-469.75599986,0.00012329,2]
[400137381,1767146472029,-500.0,0.00012329,2]
[400137382,1767146472056,-500.0,0.00012329,2]
[400137383,1767146472082,-500.0,0.00012329,2]
[400137384,1767146472109,-500.0,0.00012329,2]
[400137385,1767146472134,-500.0,0.00012329,2]
[400137386,1767146472163,-500.0,0.00012329,2]
[400137387,1767146472188,-500.0,0.00012329,2]
[400137388,1767146472213,-500.0,0.00012329,2]
[400137389,1767146472237,-500.0,0.00012329,2]
[400137390,1767146472261,-500.0,0.00012329,2]
[400137391,1767146472286,-500.0,0.00012329,2]
[400137392,1767146472312,-96.92354665,0.00012329,2]
[400137393,1767146472491,-403.07645335,0.00012329,2]
[400137394,1767146472519,-500.0,0.00012329,2]
[400137395,1767146472545,-24096.92354665,0.0001233,2]
[400137396,1767146472659,-25000.0,0.0001233,2]
[400137397,1767146473393,-903.07645335,0.0001233,2]
[400137398,1767146473422,-500.0,0.0001233,2]
[400137399,1767146473452,-23596.92354665,0.00012458,2]
[400137400,1767146474335,-25000.0,0.00012458,2]
[400137401,1767146475076,-25000.0,0.00012458,2]
[400137402,1767146475818,-25000.0,0.00012458,2]
[400137403,1767146476555,-25000.0,0.00012458,2]
[400137404,1767146477350,-25000.0,0.00012458,2]
[400137405,1767146478142,-171.92,0.00012329,2]
[400137406,1767146478176,-24828.08,0.00012458,2]
[400137407,1767146478926,-25000.0,0.00012458,2]
[400137408,1767146479471,-25000.0,0.00012458,2]
[400137409,1767146480336,-25000.0,0.00012458,2]
[400137410,1767146481222,-25000.0,0.00012458,2]
[400137411,1767146481974,-25000.0,0.00012458,2]
[400137412,1767146483197,-195.572523,0.00012431,2]
[400137413,1767146483230,-24804.427477,0.00012458,2]
[400137414,1767146484748,-25000.0,0.00012458,2]
[400137415,1767146485635,-5000.0,0.00012334,2]
[400137416,1767146485665,-20000.0,0.00012458,2]
[400137417,1767146494404,-859.63,0.00012329,2]
[400137418,1767146494432,-17140.37,0.00012458,2]
[400137419,1767146506884,-500.0,0.00012458,2]
[400137420,1767146565784,458.0,0.00028767,120]
[400137421,1767146573265,-625.91847044,0.00012211,2]
[400137422,1767146573307,-313.75,0.00012329,2]
[400137423,1767146573331,-261.45,0.00012329,2]
[400137424,1767146573357,-217.88,0.00012329,2]
[400137425,1767146573380,-181.57,0.00012329,2]
[400137426,1767146573403,-151.3,0.00012329,2]
[400137427,1767146573428,-3248.13152956,0.00012334,2]
[400137428,1767146575016,-1751.86847044,0.00012334,2]
[400137429,1767146584203,-756.55,0.00012329,2]
[400137430,1767146609135,-5000.0,0.00012331,2]
[400137431,1767146628624,-5000.0,0.00012331,2]
[400137432,1767146650482,-5000.0,0.00012331,2]
[400137433,1767146671510,-5000.0,0.00012331,2]
[400137434,1767146697343,-5000.0,0.00012331,2]
[400137435,1767146721157,-5000.0,0.0001233,2]
[400137436,1767146742028,-5000.0,0.0001233,2]
[400137437,1767146763233,-5000.0,0.0001233,2]
[400137438,1767146788379,-5000.0,0.0001233,2]
[400137439,1767146811544,-5000.0,0.0001233,2]
[400137440,1767146826049,1586.9666071,0.00011456,2]
[400137441,1767146834269,-5000.0,0.00012329,2]
[400137442,1767146862050,-5000.0,0.00012329,2]
[400137443,1767146880213,238.45,9.99e-05,2]
[400137444,1767146880539,238.45,9.99e-05,2]
[400137445,1767146880923,238.44,9.99e-05,2]
[400137446,1767146882027,-5000.0,0.00012329,2]
[400137447,1767146900213,-300.0,0.00012454,2]
[400137448,1767146900241,-1200.0,0.00012454,2]
[400137449,1767146900697,5000.0,0.00012329,2]
[400137450,1767146913109,2000.01,0.00012426,2]
[400137451,1767146913138,10000.01,0.00012426,2]
[400137452,1767146913174,10000.01,0.00012426,2]
[400137453,1767146913198,10000.01,0.00012426,2]
[400137454,1767146913221,10000.01,0.00012426,2]
[400137455,1767146913244,10000.01,0.00012426,2]
[400137456,1767146913267,10000.01,0.00012426,2]
[400137457,1767146913290,10000.01,0.00012426,2]
[400137458,1767146913312,5649.3998639,0.00012426,2]
[400137459,1767146923625,5000.0,0.00012455,2]
[400137460,1767146942433,300.0,0.00012454,2]
[400137461,1767146946572,4700.01,0.00012455,2]
[400137462,1767146946595,299.99,0.00012455,2]
[400137463,1767146961222,-456.49274625,0.00012455,2]
[400137464,1767146961252,-500.0,0.00012455,2]
[400137465,1767146961279,-363.6447321,0.00012455,2]
[400137466,1767146961307,-500.0,0.00012455,2]
[400137467,1767146961334,-500.0,0.00012455,2]
[400137468,1767146961365,-500.0,0.00012455,2]
[400137469,1767146961395,-552.1951111,0.00012455,2]
[400137470,1767146961422,-500.0,0.00012455,2]
[400137471,1767146961445,-295.93254177,0.00012455,2]
[400137472,1767146961471,-1200.0,0.00012455,2]
[400137473,1767146961500,-265.2259652,0.00012455,2]
[400137474,1767146961524,-699.76684158,0.00012456,2]
[400137475,1767146963216,-29682.74617207,0.00012456,2]
[400137476,1767146966090,-4999.78837945,0.00012456,2]
[400137477,1767146970162,5000.0,0.00012455,2]
[400137478,1767146979578,-6774.79743473,0.00012456,2]
[400137479,1767146979688,-2157.10882783,0.00012456,2]
[400137480,1767146979712,-5685.79234434,0.00012456,2]
[400137481,1767146983902,10000.01,0.00012358,2]
[400137482,1767146983929,10000.01,0.00012358,2]
[400137483,1767146983954,10000.01,0.00012358,2]
[400137484,1767146983979,10000.01,0.00012358,2]
[400137485,1767146984004,10000.01,0.00012358,2]
[400137486,1767146984029,10000.01,0.00012358,2]
[400137487,1767146984055,10000.01,0.00012358,2]
[400137488,1767146984079,10000.01,0.00012358,2]
[400137489,1767146984104,10000.01,0.00012358,2]
[400137490,1767146989213,-10000.01,0.00012358,2]
[400137491,1767146989355,-10000.01,0.00012358,2]
[400137492,1767146992552,5000.0,0.00012235,2]
[400137494,1767147002658,300.0,0.00012357,2]
[400137495,1767147002830,1200.0,0.00012357,2]
[400137496,1767147007301,595.0,0.00012358,2]
[400137497,1767147009123,-5000.0,0.00012358,2]
[400137498,1767147011345,-5000.0,0.00012358,2]
[400137499,1767147015228,-5000.0,0.00012358,2]
[400137500,1767147016732,2905.01,0.00012358,2]
[400137501,1767147016757,2094.99,0.00012358,2]
[400137502,1767147017249,-5000.0,0.00012358,2]
[400137503,1767147022421,-5000.0,0.00012358,2]
[400137504,1767147026074,-5000.0,0.00012358,2]
[400137505,1767147031168,213.79646898,0.00012357,2]
[400137506,1767147031214,378.81944514,0.00012357,2]
[400137508,1767147031628,-5000.0,0.00012358,2]
[400137527,1767147032081,-904.35318584,0.00012358,2]
[400137530,1767147032114,-607.51500014,0.00012358,2]
[400137532,1767147032125,-444.30395394,0.00012358,2]
[400137534,1767147032136,-6481.3598288,0.00012358,2]
[400137541,1767147032636,500.0,0.00012357,2]
[400137542,1767147032666,500.0,0.00012357,2]
[400137543,1767147032699,500.0,0.00012357,2]
[400137544,1767147032734,500.0,0.00012357,2]
[400137545,1767147032774,500.0,0.00012357,2]
[400137546,1767147032801,500.0,0.00012357,2]
[400137547,1767147032829,278.35739946,0.00012357,2]
[400137548,1767147032858,500.0,0.00012357,2]
[400137549,1767147032909,424.82240486,0.00012357,2]
[400137550,1767147032936,474.54628522,0.00012357,2]
[400137551,1767147032983,500.0,0.00012357,2]
[400137552,1767147033025,306.70680169,0.00012357,2]
[400137553,1767147033063,500.0,0.00012357,2]
[400137554,1767147034339,-5000.0,0.00012358,2]
[400137585,1767147038182,-56616.63126833,0.00012358,2]
[400137587,1767147038193,-563915.49499961,0.00012358,2]
[400137588,1767147038203,-1030.57947507,0.000125,2]
[400137589,1767147038213,-1009.05,0.000126,2]
[400137590,1767147038223,-300.0,0.00012706,2]